fUST/lending_fUST_20250225
["ID","MTS","AMOUNT","RATE_DAILY","PERIOD"]
[354431329,1740489509134,10000.0,0.00066632,25]
[354431330,1740489513865,10000.0,0.00066632,26]
[354431331,1740489518169,10000.0,0.00066632,27]
[354431332,1740489539157,10000.0,0.00066632,28]
[354431333,1740489654416,1946.150456,0.00066706,120]
[354431334,1740489671825,10000.0,0.00066706,5]
[354431335,1740489676885,10000.0,0.00066706,6]
[354431336,1740489680762,10000.0,0.00066706,7]
[354431337,1740489684859,10000.0,0.00066706,8]
[354431338,1740489688661,10000.0,0.00066706,9]
[354431340,1740489965255,1000.0,0.00066709,90]
[354431341,1740489972300,1000.0,0.00066709,60]
[354431343,1740489978844,1000.0,0.00066709,30]
[354431344,1740490049291,-800.0,0.00026,2]
[354431345,1740490049314,-800.0,0.00027,3]
[354431346,1740490049341,-300.0,0.00028999,2]
[354431347,1740490049450,-4978.94307897,0.00029,10]
[354431348,1740490081542,3000.0,0.00066709,120]
[354431349,1740490083421,4154.6096412,0.00015999,2]
[354431354,1740490123256,5000.08054328,0.00066709,3]
[354431393,1740490232812,-591.39203722,0.00029,10]
[354431394,1740490232822,-232.2937488,0.00032109,120]
[354431395,1740490232831,-1170.150722,0.00032602,2]
[354431396,1740490232840,-1037.90316198,0.0003499,30]
[354431397,1740490233126,-312.09683802,0.0003499,30]
[354431398,1740490233136,-830.28618901,0.0003506,91]
[354431399,1740490233146,-320.0,0.00035159,2]
[354431400,1740490233157,-2910.76343544,0.0003516,2]
[354431401,1740490233169,-830.28618897,0.00042198,120]
[354431402,1740490233179,-2400.0880025,0.0004302,2]
[354431403,1740490233189,-2763.05508378,0.000439,9]
[354431404,1740490233199,-44464.41845705,0.000445,60]
[354431405,1740490233210,-653.81130591,0.00046935,2]
[354431406,1740490233220,-216.06292307,0.00047225,10]
[354431407,1740490233229,-500.0,0.00047225,10]
[354431408,1740490233239,-351.00589457,0.00047225,10]
[354431409,1740490233248,-500.0,0.00047225,10]
[354431410,1740490233258,-186.84,0.0004799,30]
[354431411,1740490233267,-155.7,0.0004799,30]
[354431412,1740490233276,-778.54,0.0004799,30]
[354431413,1740490233287,-31231.63266027,0.00048,120]
[354431414,1740490235990,-91476.37397763,0.00048,120]
[354431415,1740490236000,-872.15,0.00048388,30]
[354431416,1740490236010,-224.21,0.00048388,30]
[354431417,1740490236019,-500.0,0.00048397,2]
[354431418,1740490236029,-500.0,0.00048397,120]
[354431419,1740490236038,-500.0,0.00048397,120]
[354431420,1740490236048,-500.0,0.00048397,2]
[354431421,1740490236057,-500.0,0.00048397,2]
[354431423,1740490236067,-500.0,0.00048397,120]
[354431425,1740490236076,-585.4597938,0.00048397,120]
[354431427,1740490236086,-600.0,0.00048397,2]
[354431429,1740490236095,-618.72545872,0.00048397,120]
[354431431,1740490236105,-500.0,0.00048397,120]
[354431433,1740490236114,-500.0,0.00048397,2]
[354431435,1740490236123,-500.0,0.00048397,2]
[354431437,1740490236133,-500.0,0.00048397,2]
[354431439,1740490236142,-500.0,0.00048397,2]
[354431441,1740490236151,-500.0,0.00048397,2]
[354431442,1740490236161,-500.0,0.00048397,2]
[354431444,1740490236173,-500.0,0.00048397,2]
[354431446,1740490236182,-500.0,0.00048397,2]
[354431447,1740490236191,-500.0,0.00048397,2]
[354431448,1740490236201,-500.0,0.00048397,2]
[354431449,1740490236211,-500.0,0.00048397,2]
[354431450,1740490236220,-500.0,0.00048397,2]
[354431452,1740490236230,-43260.41246152,0.00048398,120]
[354431454,1740490236239,-1170.150722,0.00048903,2]
[354431456,1740490236248,-830.28618897,0.00049336,120]
[354431458,1740490236258,-2763.05508351,0.00049969,11]
[354431460,1740490236268,-404.87745897,0.00052,120]
[354431462,1740490236277,-10012.15282812,0.00052,120]
[354431464,1740490236286,-379.24208848,0.00052443,2]
[354431466,1740490236296,-500.0,0.00054156,10]
[354431468,1740490236305,-500.0,0.00054156,10]
[354431470,1740490236318,-500.0,0.00054156,10]
[354431473,1740490236327,-261.60862812,0.00054156,10]
[354431475,1740490236336,-154.36745923,0.00054599,28]
[354431476,1740490236346,-3000.0,0.00054694,120]
[354431478,1740490236357,-389.743,0.00054699,103]
[354431480,1740490236367,-200.0,0.00054773,10]
[354431482,1740490236376,-500.0,0.00054773,7]
[354431484,1740490236387,-500.0,0.00054773,10]
[354431485,1740490236398,-500.0,0.00054773,2]
[354431486,1740490236407,-500.0,0.00054773,10]
[354431487,1740490236417,-174.42,0.00054774,30]
[354431488,1740490236427,-500.0,0.00054783,2]
[354431489,1740490236437,-91332.68801573,0.00054784,5]
[354431508,1740490238466,-1000.0,0.00054784,5]
[354431509,1740490238478,-66356.16491427,0.00054784,5]
[354431510,1740490238488,-500.0,0.00054793,31]
[354431511,1740490238499,-200.39698335,0.00054793,31]
[354431512,1740490238509,-500.0,0.00054793,120]
[354431514,1740490238518,-552.44156338,0.00054793,120]
[354431516,1740490238529,-500.0,0.00054794,30]
[354431517,1740490238539,-500.0,0.00054794,120]
[354431518,1740490238549,-500.0,0.00054794,120]
[354431519,1740490238559,-500.0,0.00054794,120]
[354431520,1740490238568,-500.0,0.00054794,120]
[354431521,1740490238577,-500.88694663,0.00054794,120]
[354431522,1740490238587,-500.84293457,0.00054794,120]
[354431523,1740490238597,-500.0,0.00054794,120]
[354431524,1740490238607,-500.0,0.00054794,120]
[354431525,1740490238616,-500.0,0.00054794,120]
[354431526,1740490238626,-500.0,0.00054794,120]
[354431527,1740490238640,-500.0,0.00054794,120]
[354431528,1740490238650,-500.0,0.00054794,120]
[354431529,1740490238659,-670.65,0.00054794,120]
[354431530,1740490238670,-500.0,0.00054794,120]
[354431531,1740490238680,-501.69641121,0.00054794,120]
[354431532,1740490238690,-501.94183483,0.00054794,120]
[354431533,1740490238700,-500.0,0.00054794,120]
[354431534,1740490238793,-500.0,0.00054794,120]
[354431535,1740490238804,-500.0,0.00054794,120]
[354431536,1740490238817,-500.0,0.00054794,120]
[354431537,1740490238827,-510.59709084,0.00054794,120]
[354431538,1740490238837,-500.0,0.00054794,120]
[354431539,1740490238846,-500.0,0.00054794,120]
[354431540,1740490238856,-500.0,0.00054794,2]
[354431541,1740490238865,-500.0,0.00054794,120]
[354431542,1740490238875,-500.0,0.00054794,120]
[354431543,1740490238884,-500.0,0.00054794,120]
[354431544,1740490238894,-500.0,0.00054794,120]
[354431545,1740490238904,-544.17232376,0.00054794,120]
[354431546,1740490238913,-515.04465361,0.00054794,120]
[354431547,1740490238926,-500.0,0.00054794,120]
[354431548,1740490238935,-500.0,0.00054794,120]
[354431549,1740490238945,-500.0,0.00054794,120]
[354431550,1740490238954,-500.0,0.00054794,120]
[354431551,1740490238964,-500.0,0.00054794,120]
[354431552,1740490238973,-500.0,0.00054794,120]
[354431553,1740490238983,-500.0,0.00054794,120]
[354431554,1740490238992,-500.0,0.00054794,120]
[354431555,1740490239002,-500.0,0.00054794,120]
[354431556,1740490239011,-500.0,0.00054794,120]
[354431557,1740490239021,-500.0,0.00054794,120]
[354431558,1740490239030,-500.0,0.00054794,120]
[354431559,1740490239039,-500.0,0.00054794,120]
[354431560,1740490239049,-241.45,0.00054794,120]
[354431561,1740490239058,-504.33498649,0.00054794,120]
[354431562,1740490239067,-500.0,0.00054794,120]
[354431563,1740490239077,-500.0,0.00054794,120]
[354431564,1740490239087,-500.0,0.00054794,120]
[354431565,1740490239096,-500.0,0.00054794,120]
[354431566,1740490239105,-500.0,0.00054794,120]
[354431567,1740490239115,-503.1086429,0.00054794,120]
[354431568,1740490239124,-500.0,0.00054794,120]
[354431569,1740490239134,-500.0,0.00054794,120]
[354431570,1740490239144,-500.0,0.00054794,120]
[354431571,1740490239153,-503.47574561,0.00054794,120]
[354431572,1740490239163,-954.82,0.00054794,120]
[354431573,1740490239176,-500.0,0.00054794,120]
[354431574,1740490239186,-711.39,0.00054794,120]
[354431575,1740490239195,-500.0,0.00054794,120]
[354431576,1740490239205,-558.9,0.00054794,120]
[354431577,1740490239214,-502.50374051,0.00054794,120]
[354431578,1740490239224,-500.0,0.00054794,120]
[354431579,1740490239233,-500.0,0.00054794,120]
[354431580,1740490239243,-500.0,0.00054794,120]
[354431581,1740490239252,-195.06053086,0.00054794,120]
[354431582,1740490239262,-500.0,0.00054794,120]
[354431583,1740490239271,-870.66,0.00054794,120]
[354431584,1740490239280,-500.0,0.00054794,120]
[354431585,1740490239289,-444.54335897,0.00054794,120]
[354431586,1740490239299,-500.0,0.00054794,120]
[354431587,1740490239309,-500.0,0.00054794,120]
[354431588,1740490239321,-500.0,0.00054794,120]
[354431589,1740490239331,-500.0,0.00054794,120]
[354431590,1740490239340,-675.07,0.00054794,120]
[354431591,1740490239350,-500.0,0.00054794,120]
[354431592,1740490239361,-599.99,0.00054794,120]
[354431593,1740490239374,-492.32463138,0.00054794,120]
[354431594,1740490239383,-500.0,0.00054794,120]
[354431595,1740490239394,-639.37,0.00054794,120]
[354431596,1740490239403,-2170.66725712,0.00054794,30]
[354431597,1740490239413,-743.93,0.00054794,120]
[354431598,1740490239425,-500.0,0.00054794,120]
[354431599,1740490239434,-250.0,0.00054794,120]
[354431600,1740490239444,-500.0,0.00054794,120]
[354431601,1740490239454,-500.0,0.00054794,120]
[354431602,1740490239470,-500.0,0.00054794,120]
[354431603,1740490239484,-500.0,0.00054794,120]
[354431604,1740490239500,-508.87527991,0.00054794,120]
[354431605,1740490239512,-500.0,0.00054794,120]
[354431606,1740490239527,-500.0,0.00054794,120]
[354431607,1740490239538,-889.61,0.00054794,120]
[354431608,1740490239548,-687.48,0.00054794,120]
[354431609,1740490239558,-500.0,0.00054794,120]
[354431610,1740490239569,-500.0,0.00054794,120]
[354431611,1740490239578,-500.0,0.00054794,120]
[354431612,1740490239589,-500.0,0.00054794,120]
[354431613,1740490239599,-510.43365665,0.00054794,120]
[354431614,1740490239609,-870.39,0.00054794,120]
[354431615,1740490239623,-500.0,0.00054794,120]
[354431616,1740490239640,-520.47145173,0.00054794,120]
[354431617,1740490239656,-500.0,0.00054794,120]
[354431618,1740490239672,-500.0,0.00054794,120]
[354431619,1740490239681,-600.0,0.00054794,120]
[354431620,1740490239691,-503.70530225,0.00054794,120]
[354431621,1740490239703,-500.0,0.00054794,120]
[354431622,1740490239715,-500.0,0.00054794,120]
[354431623,1740490239726,-500.0,0.00054794,120]
[354431624,1740490239738,-500.0,0.00054794,120]
[354431625,1740490239747,-500.0,0.00054794,120]
[354431626,1740490239757,-500.0,0.00054794,120]
[354431627,1740490239769,-500.0,0.00054794,120]
[354431628,1740490239780,-500.0,0.00054794,120]
[354431629,1740490239791,-540.94231732,0.00054794,120]
[354431630,1740490239803,-500.0,0.00054794,120]
[354431631,1740490239813,-500.0,0.00054794,120]
[354431632,1740490239822,-500.0,0.00054794,120]
[354431633,1740490239834,-500.0,0.00054794,120]
[354431634,1740490239844,-500.0,0.00054794,120]
[354431636,1740490239854,-500.0,0.00054794,120]
[354431638,1740490239864,-500.0,0.00054794,120]
[354431640,1740490239874,-500.0,0.00054794,120]
[354431641,1740490239884,-631.07,0.00054794,120]
[354431642,1740490239894,-500.0,0.00054794,120]
[354431643,1740490239904,-500.0,0.00054794,120]
[354431644,1740490239914,-323.50185223,0.00054794,120]
[354431645,1740490239927,-500.0,0.00054794,120]
[354431646,1740490239936,-530.94527689,0.00054794,120]
[354431647,1740490239947,-501.26518634,0.00054794,120]
[354431648,1740490239957,-500.0,0.00054794,120]
[354431649,1740490239966,-509.14603337,0.00054794,120]
[354431650,1740490239976,-500.0,0.00054794,120]
[354431651,1740490239986,-500.0,0.00054794,120]
[354431655,1740490240072,-500.0,0.00054794,120]
[354431656,1740490240082,-2860.45,0.00054794,120]
[354431657,1740490240091,-500.91038201,0.00054794,120]
[354431658,1740490240100,-500.0,0.00054794,120]
[354431659,1740490240110,-501.60672053,0.00054794,120]
[354431660,1740490240119,-500.0,0.00054794,120]
[354431661,1740490240129,-500.0,0.00054794,120]
[354431662,1740490240139,-500.0,0.00054794,120]
[354431663,1740490240148,-500.0,0.00054794,120]
[354431664,1740490240158,-505.22451817,0.00054794,120]
[354431665,1740490240167,-500.0,0.00054794,120]
[354431666,1740490240180,-346.93540459,0.00054794,120]
[354431667,1740490240190,-500.0,0.00054794,120]
[354431669,1740490240199,-500.0,0.00054794,120]
[354431670,1740490240208,-500.0,0.00054794,120]
[354431671,1740490240217,-500.0,0.00054794,120]
[354431672,1740490240227,-210.62962174,0.00054794,120]
[354431673,1740490240236,-500.0,0.00054794,120]
[354431674,1740490240246,-500.0,0.00054794,120]
[354431675,1740490240255,-575.58,0.00054794,120]
[354431676,1740490240264,-500.0,0.00054794,120]
[354431677,1740490240273,-500.0,0.00054794,120]
[354431678,1740490240283,-500.0,0.00054794,120]
[354431679,1740490240292,-500.0,0.00054794,120]
[354431680,1740490240302,-580.0,0.00054794,120]
[354431681,1740490240312,-500.0,0.00054794,120]
[354431682,1740490240324,-500.0,0.00054794,120]
[354431683,1740490240333,-577.63725623,0.00054794,120]
[354431684,1740490240343,-500.0,0.00054794,120]
[354431685,1740490240353,-854.33,0.00054794,120]
[354431686,1740490240363,-500.0,0.00054794,120]
[354431687,1740490240372,-559.91103563,0.00054794,120]
[354431688,1740490240382,-500.0,0.00054794,120]
[354431689,1740490240393,-500.0,0.00054794,120]
[354431690,1740490240403,-500.0,0.00054794,120]
[354431691,1740490240412,-500.0,0.00054794,120]
[354431692,1740490240423,-500.0,0.00054794,120]
[354431693,1740490240432,-500.0,0.00054794,120]
[354431694,1740490240442,-500.0,0.00054794,120]
[354431695,1740490240451,-500.0,0.00054794,120]
[354431697,1740490240462,-500.0,0.00054794,120]
[354431699,1740490240471,-500.0,0.00054794,120]
[354431700,1740490240481,-505.2503811,0.00054794,120]
[354431701,1740490240490,-500.0,0.00054794,120]
[354431702,1740490240500,-677.67,0.00054794,120]
[354431703,1740490240510,-500.0,0.00054794,120]
[354431704,1740490240519,-500.0,0.00054794,120]
[354431705,1740490240529,-512.81176448,0.00054794,30]
[354431706,1740490240539,-500.0,0.00054794,120]
[354431707,1740490240549,-602.86,0.00054794,120]
[354431708,1740490240558,-500.0,0.00054794,120]
[354431709,1740490240568,-683.64,0.00054794,120]
[354431710,1740490240578,-500.0,0.00054794,120]
[354431711,1740490240587,-500.0,0.00054794,120]
[354431712,1740490240597,-500.0,0.00054794,120]
[354431713,1740490240606,-500.0,0.00054794,120]
[354431714,1740490240616,-500.0,0.00054794,120]
[354431715,1740490240625,-500.0,0.00054794,120]
[354431716,1740490240635,-500.0,0.00054794,120]
[354431717,1740490240645,-500.0,0.00054794,120]
[354431718,1740490240654,-500.0,0.00054794,120]
[354431719,1740490240664,-683.0,0.00054794,120]
[354431720,1740490240674,-503.26740281,0.00054794,120]
[354431721,1740490240683,-505.04333626,0.00054794,120]
[354431722,1740490240693,-500.0,0.00054794,120]
[354431723,1740490240702,-501.54010765,0.00054794,120]
[354431724,1740490240712,-500.0,0.00054794,120]
[354431725,1740490240721,-505.91148077,0.00054794,120]
[354431726,1740490240731,-500.0,0.00054794,120]
[354431727,1740490240741,-911.81,0.00054794,120]
[354431728,1740490240751,-500.0,0.00054794,120]
[354431729,1740490240760,-500.0,0.00054794,120]
[354431730,1740490240770,-500.0,0.00054794,120]
[354431731,1740490240780,-500.0,0.00054794,120]
[354431732,1740490240789,-500.0,0.00054794,120]
[354431733,1740490240799,-500.0,0.00054794,120]
[354431734,1740490240808,-500.83570016,0.00054794,120]
[354431735,1740490240818,-6541.01,0.00054794,120]
[354431736,1740490240827,-624.97,0.00054794,120]
[354431737,1740490240837,-609.27,0.00054794,120]
[354431738,1740490240846,-712.64,0.00054794,120]
[354431739,1740490240856,-500.0,0.00054794,120]
[354431740,1740490240865,-500.0,0.00054794,120]
[354431741,1740490240875,-803.68,0.00054794,120]
[354431742,1740490240884,-2390.7,0.00054794,120]
[354431743,1740490240894,-500.0,0.00054794,120]
[354431744,1740490240904,-500.0,0.00054794,120]
[354431745,1740490240914,-1305.87,0.00054794,120]
[354431746,1740490240925,-500.0,0.00054794,120]
[354431747,1740490240934,-500.0,0.00054794,120]
[354431748,1740490240944,-500.0,0.00054794,120]
[354431749,1740490240954,-500.0,0.00054794,120]
[354431750,1740490240963,-500.0,0.00054794,120]
[354431751,1740490240972,-1000.0,0.00054794,120]
[354431752,1740490240982,-500.0,0.00054794,120]
[354431753,1740490240994,-613.07,0.00054794,120]
[354431754,1740490241003,-500.0,0.00054794,120]
[354431755,1740490241013,-500.0,0.00054794,120]
[354431756,1740490241023,-500.0,0.00054794,20]
[354431757,1740490241032,-500.0,0.00054794,120]
[354431758,1740490241042,-500.0,0.00054794,120]
[354431759,1740490241051,-500.0,0.00054794,120]
[354431760,1740490241061,-500.0,0.00054794,120]
[354431761,1740490241070,-349.56416494,0.00054794,120]
[354431762,1740490241079,-500.0,0.00054794,120]
[354431763,1740490241160,-500.0,0.00054794,120]
[354431764,1740490241171,-505.44862535,0.00054794,120]
[354431765,1740490241183,-500.0,0.00054794,120]
[354431766,1740490241192,-500.0,0.00054794,120]
[354431767,1740490241202,-500.0,0.00054794,120]
[354431768,1740490241212,-500.0,0.00054794,120]
[354431769,1740490241222,-504.41319185,0.00054794,120]
[354431770,1740490241232,-500.0,0.00054794,120]
[354431771,1740490241242,-500.0,0.00054794,120]
[354431772,1740490241251,-1708.65,0.00054794,120]
[354431773,1740490241260,-3156.68,0.00054794,120]
[354431774,1740490241270,-500.0,0.00054794,120]
[354431775,1740490241279,-500.0,0.00054794,120]
[354431776,1740490241288,-23896.25,0.00054794,6]
[354431777,1740490241298,-500.0,0.00054794,120]
[354431778,1740490241310,-383.43284134,0.00054794,120]
[354431779,1740490241320,-500.0,0.00054794,120]
[354431780,1740490241329,-837.5,0.00054794,120]
[354431781,1740490241339,-500.0,0.00054794,120]
[354431782,1740490241349,-500.0,0.00054794,120]
[354431783,1740490241358,-500.0,0.00054794,120]
[354431784,1740490241367,-500.0,0.00054794,120]
[354431785,1740490241376,-504.44616776,0.00054794,120]
[354431786,1740490241387,-502.05442398,0.00054794,120]
[354431787,1740490241397,-506.04047845,0.00054794,120]
[354431788,1740490241406,-795.32,0.00054794,120]
[354431789,1740490241415,-500.0,0.00054794,120]
[354431790,1740490241427,-500.0,0.00054794,120]
[354431791,1740490241435,-2011.3,0.00054794,120]
[354431792,1740490241444,-1593.04,0.00054794,120]
[354431793,1740490241453,-500.0,0.00054794,120]
[354431794,1740490241463,-500.0,0.00054794,120]
[354431795,1740490241473,-810.98,0.00054794,120]
[354431796,1740490241482,-500.0,0.00054794,120]
[354431797,1740490241491,-500.0,0.00054794,120]
[354431798,1740490241501,-1286.64,0.00054794,120]
[354431799,1740490241510,-500.0,0.00054794,120]
[354431800,1740490241519,-500.0,0.00054794,120]
[354431801,1740490241529,-9951.0,0.00054794,120]
[354431802,1740490241538,-500.0,0.00054794,120]
[354431803,1740490241548,-500.0,0.00054794,120]
[354431804,1740490241557,-500.0,0.00054794,120]
[354431805,1740490241567,-500.0,0.00054794,120]
[354431806,1740490241576,-500.0,0.00054794,120]
[354431807,1740490241585,-500.0,0.00054794,120]
[354431808,1740490241595,-1545.32,0.00054794,120]
[354431809,1740490241604,-500.0,0.00054794,120]
[354431810,1740490241613,-500.0,0.00054794,120]
[354431811,1740490241622,-501.24265474,0.00054794,120]
[354431812,1740490241632,-244.35200843,0.00054794,120]
[354431813,1740490241641,-508.35,0.00054794,120]
[354431814,1740490241650,-500.0,0.00054794,120]
[354431815,1740490241659,-608.0,0.00054794,120]
[354431816,1740490241669,-500.0,0.00054794,120]
[354431817,1740490241680,-500.0,0.00054794,120]
[354431818,1740490241689,-500.0,0.00054794,120]
[354431819,1740490241699,-528.65,0.00054794,120]
[354431820,1740490241708,-500.0,0.00054794,120]
[354431821,1740490241717,-500.0,0.00054794,30]
[354431822,1740490241727,-246.075767,0.00054794,120]
[354431823,1740490241736,-1220.46,0.00054794,120]
[354431824,1740490241745,-500.0,0.00054794,120]
[354431825,1740490241755,-500.0,0.00054794,120]
[354431826,1740490241764,-500.0,0.00054794,120]
[354431827,1740490241774,-500.0,0.00054794,120]
[354431828,1740490241783,-5596.61,0.00054794,120]
[354431829,1740490241793,-500.0,0.00054794,120]
[354431830,1740490241802,-606.94,0.00054794,120]
[354431831,1740490241812,-500.0,0.00054794,120]
[354431832,1740490241822,-500.0,0.00054794,120]
[354431833,1740490241831,-1689.69,0.00054794,120]
[354431834,1740490241841,-500.0,0.00054794,120]
[354431835,1740490241850,-658.04,0.00054794,120]
[354431836,1740490241859,-500.0,0.00054794,120]
[354431837,1740490241868,-502.3457061,0.00054794,30]
[354431838,1740490241878,-500.0,0.00054794,120]
[354431839,1740490241886,-1053.98,0.00054794,120]
[354431840,1740490241896,-619.34,0.00054794,120]
[354431841,1740490241905,-512.93324986,0.00054794,120]
[354431842,1740490241914,-500.0,0.00054794,120]
[354431843,1740490241924,-500.0,0.00054794,120]
[354431844,1740490241934,-3348.36,0.00054794,3]
[354431845,1740490241943,-500.0,0.00054794,120]
[354431846,1740490241952,-500.29273684,0.00054794,120]
[354431847,1740490241962,-500.0,0.00054794,120]
[354431848,1740490241971,-500.0,0.00054794,120]
[354431849,1740490241981,-139306.27,0.00054794,7]
[354431850,1740490241990,-1035.18,0.00054794,120]
[354431851,1740490241999,-1329.56,0.00054794,120]
[354431852,1740490242009,-1003.21912393,0.00054794,2]
[354431853,1740490242019,-500.0,0.00054794,120]
[354431854,1740490242028,-500.0,0.00054794,120]
[354431855,1740490242037,-500.0,0.00054794,120]
[354431856,1740490242047,-500.0,0.00054794,120]
[354431857,1740490242057,-500.0,0.00054794,120]
[354431858,1740490242066,-2780.94,0.00054794,120]
[354431859,1740490242076,-500.0,0.00054794,120]
[354431860,1740490242085,-500.0,0.00054794,120]
[354431861,1740490242164,-500.0,0.00054794,120]
[354431862,1740490242177,-500.0,0.00054794,120]
[354431863,1740490242188,-559.05,0.00054794,120]
[354431864,1740490242198,-1837.72,0.00054794,120]
[354431865,1740490242208,-677.85,0.00054794,120]
[354431866,1740490242218,-500.0,0.00054794,120]
[354431867,1740490242229,-500.0,0.00054794,120]
[354431868,1740490242237,-500.0,0.00054794,120]
[354431869,1740490242248,-500.0,0.00054794,120]
[354431870,1740490242257,-14996.43,0.00054794,120]
[354431871,1740490242266,-500.0,0.00054794,120]
[354431872,1740490242275,-500.0,0.00054794,120]
[354431873,1740490242284,-500.65921,0.00054794,120]
[354431874,1740490242293,-500.0,0.00054794,120]
[354431875,1740490242302,-500.0,0.00054794,120]
[354431876,1740490242313,-500.0,0.00054794,120]
[354431877,1740490242323,-700.9,0.00054794,120]
[354431878,1740490242333,-696.2,0.00054794,120]
[354431879,1740490242342,-829.91,0.00054794,120]
[354431880,1740490242352,-500.0,0.00054794,120]
[354431881,1740490242362,-500.0,0.00054794,120]
[354431882,1740490242372,-503.13241147,0.00054794,120]
[354431883,1740490242383,-658.48,0.00054794,120]
[354431884,1740490242394,-981.67,0.00054794,120]
[354431885,1740490242403,-1000.0,0.00054794,20]
[354431886,1740490242412,-500.0,0.00054794,120]
[354431887,1740490242422,-500.0,0.00054794,120]
[354431888,1740490242435,-500.0,0.00054794,120]
[354431889,1740490242444,-956.13,0.00054794,120]
[354431890,1740490242454,-507.09864654,0.00054794,120]
[354431891,1740490242463,-611.4,0.00054794,120]
[354431892,1740490242472,-3500.0,0.00054794,120]
[354431893,1740490242482,-500.0,0.00054794,120]
[354431894,1740490242492,-500.0,0.00054794,120]
[354431895,1740490242501,-500.0,0.00054794,120]
[354431896,1740490242510,-788.79,0.00054794,120]
[354431897,1740490242520,-4711.15,0.00054794,120]
[354431898,1740490242529,-720.41,0.00054794,120]
[354431899,1740490242538,-500.0,0.00054794,21]
[354431900,1740490242548,-500.0,0.00054794,30]
[354431901,1740490242557,-500.0,0.00054794,120]
[354431902,1740490242566,-534.13,0.00054794,120]
[354431903,1740490242575,-500.0,0.00054794,120]
[354431904,1740490242585,-22810.42,0.00054794,120]
[354431905,1740490242594,-592.37,0.00054794,120]
[354431906,1740490242603,-2442.41,0.00054794,120]
[354431907,1740490242612,-500.0,0.00054794,120]
[354431908,1740490242622,-158.95510074,0.00054794,120]
[354431909,1740490242631,-500.0,0.00054794,120]
[354431910,1740490242641,-2599.63,0.00054794,120]
[354431911,1740490242650,-500.0,0.00054794,120]
[354431912,1740490242660,-500.0,0.00054794,120]
[354431913,1740490242669,-500.0,0.00054794,120]
[354431914,1740490242681,-500.0,0.00054794,120]
[354431915,1740490242691,-500.0,0.00054794,120]
[354431916,1740490242700,-500.0,0.00054794,120]
[354431917,1740490242710,-500.0,0.00054794,120]
[354431918,1740490242719,-500.0,0.00054794,120]
[354431919,1740490242728,-500.0,0.00054794,120]
[354431920,1740490242738,-500.0,0.00054794,120]
[354431921,1740490242747,-500.0,0.00054794,120]
[354431922,1740490242756,-500.0,0.00054794,120]
[354431923,1740490242766,-500.0,0.00054794,120]
[354431924,1740490242775,-500.0,0.00054794,120]
[354431925,1740490242784,-500.0,0.00054794,120]
[354431926,1740490242793,-500.0,0.00054794,120]
[354431927,1740490242803,-737.11,0.00054794,120]
[354431928,1740490242812,-578.38,0.00054794,120]
[354431929,1740490242821,-79344.4264649,0.0005499,5]
[354431930,1740490242831,-137060.20912601,0.00055,120]